bitfinex/quotes_BTCUSD_20230114
["timestamp","ask_amount","ask_price","bid_price","bid_amount"]
[1673695349417,0.90412,20696.0,20695.0,6.591e-05]
[1673695349662,0.420935,20696.0,20695.0,6.591e-05]
[1673695349920,0.62738649,20696.0,20695.0,6.591e-05]
[1673695350421,1.54592595,20696.0,20695.0,6.591e-05]
[1673695350668,2.14134685,20696.0,20695.0,6.591e-05]
[1673695350914,2.16234685,20696.0,20695.0,6.591e-05]
[1673695351163,1.85340169,20696.0,20695.0,6.591e-05]
[1673695351908,1.85340169,20696.0,20689.0,0.11578885]
[1673695351909,0.1,20695.0,20689.0,0.11578885]
[1673695352156,0.1402,20693.0,20689.0,0.1158]
[1673695352415,1.47822695,20692.0,20688.0,0.12073525]
[1673695352659,1.47822695,20692.0,20688.0,0.00493525]
[1673695352660,0.77825195,20691.0,20688.0,0.00493525]
[1673695352931,0.51166095,20690.0,20688.0,0.31682883]
[1673695353171,0.51166095,20690.0,20688.0,0.00493525]
[1673695353172,0.187526,20689.0,20688.0,0.00493525]
[1673695353430,0.483341,20690.0,20688.0,0.00480205]
[1673695353663,0.483341,20690.0,20688.0,0.12060205]
[1673695353915,0.493341,20690.0,20688.0,0.12060205]
[1673695354159,0.483271,20693.0,20689.0,0.33105209]
[1673695354410,0.483271,20693.0,20689.0,0.36314699]
[1673695354647,0.483271,20693.0,20689.0,0.1478949]
[1673695354904,0.51481676,20692.0,20689.0,0.0320949]
[1673695355155,0.052,20690.0,20689.0,0.35184809]
[1673695355403,0.19388176,20692.0,20689.0,0.35184809]
[1673695355658,0.19388176,20692.0,20689.0,0.24204809]
[1673695355911,0.19388176,20692.0,20688.0,0.12060205]
[1673695355912,0.51166095,20691.0,20688.0,0.12060205]
[1673695356160,1.48510195,20690.0,20689.0,0.057]
[1673695356404,1.294376,20690.0,20689.0,0.057]
[1673695356656,1.394376,20690.0,20689.0,0.057]
[1673695356912,0.483318,20691.0,20689.0,0.057]
[1673695356913,7.2899278,20692.0,20689.0,0.5724429]
[1673695357165,0.23319714,20694.0,20690.0,0.26495634]
[1673695357402,0.483203,20696.0,20691.0,0.0320949]
[1673695357658,0.22194476,20695.0,20692.0,0.0320949]
[1673695357904,0.22194476,20695.0,20689.0,0.483348]
[1673695357905,0.1402,20693.0,20689.0,0.1158]
[1673695358165,0.1402,20693.0,20688.0,0.00480205]
[1673695358166,0.013,20691.0,20688.0,0.17260205]
[1673695358400,0.013,20691.0,20688.0,0.00480205]
[1673695358401,0.99498595,20690.0,20688.0,0.00480205]
[1673695358655,0.287526,20689.0,20688.0,0.00480205]
[1673695358912,1.070874,20689.0,20688.0,0.00480205]
[1673695359158,0.770874,20689.0,20688.0,0.00480205]
[1673695359407,1.070874,20689.0,20688.0,0.00480205]
[1673695359660,0.670874,20689.0,20688.0,0.00480205]
[1673695359906,0.187526,20689.0,20688.0,0.05080205]
[1673695360145,0.75225974,20690.0,20688.0,0.05080205]
[1673695360394,0.26513893,20689.0,20688.0,0.05080205]
[1673695360652,7.2779278,20692.0,20688.0,0.29378198]
[1673695360905,0.19742422,20692.0,20689.0,0.0320949]
[1673695361398,0.19742422,20692.0,20688.0,0.42848708]
[1673695361653,0.2586285,20691.0,20688.0,0.40958198]
[1673695361907,0.2586285,20691.0,20689.0,0.139]
[1673695362160,0.2586285,20691.0,20688.0,0.37748708]
[1673695362409,0.25710003,20690.0,20688.0,0.40068708]
[1673695363397,0.25710003,20690.0,20688.0,0.14380205]
[1673695363633,0.25710003,20690.0,20688.0,0.00480205]
[1673695363634,0.67405295,20690.0,20688.0,0.00480205]
[1673695363879,0.483327,20690.0,20688.0,0.00480205]
[1673695364140,0.320935,20689.0,20688.0,0.00480205]
[1673695364385,0.484327,20690.0,20688.0,0.14380205]
[1673695364635,0.001,20690.0,20688.0,0.14380205]
[1673695364885,0.001,20690.0,20689.0,0.24702624]
[1673695365128,0.483269,20693.0,20689.0,0.24702624]
[1673695365423,0.494022,20698.0,20690.0,0.0320949]
[1673695365424,0.22933017,20695.0,20690.0,0.0320949]
[1673695365680,0.22933017,20695.0,20691.0,0.5420009]
[1673695365924,0.22933017,20695.0,20692.0,0.0320949]
[1673695366178,0.22933017,20695.0,20693.0,0.0320949]
[1673695366461,0.01677822,20699.0,20694.0,0.0320949]
[1673695366717,0.01177822,20699.0,20695.0,1.0250849]
[1673695366962,0.01177822,20699.0,20696.0,0.0586759]
[1673695366963,0.20429339,20698.0,20696.0,0.0586759]
[1673695367228,0.20429339,20698.0,20696.0,0.5152679]
[1673695367488,0.20429339,20698.0,20697.0,0.026578]
[1673695367979,0.01177822,20699.0,20697.0,0.509739]
[1673695368227,0.01177822,20699.0,20697.0,0.68114263]
[1673695368476,0.01177822,20699.0,20698.0,0.026574]
[1673695368732,0.26681776,20699.0,20698.0,0.026574]
[1673695368982,0.26681776,20699.0,20697.0,0.76714263]
[1673695369227,0.01177822,20699.0,20698.0,0.509711]
[1673695370775,0.26405518,20699.0,20698.0,0.166573]
[1673695372996,0.32730099,20699.0,20698.0,0.14]
[1673695373239,0.70073322,20699.0,20698.0,0.14]
[1673695373500,0.80073322,20699.0,20698.0,0.14]
[1673695374007,0.70073322,20699.0,20693.0,0.68275226]
[1673695374257,0.67825195,20698.0,20693.0,0.68275226]
[1673695374497,0.19072595,20697.0,20693.0,0.68275226]
[1673695374744,0.19072595,20697.0,20693.0,0.19951126]
[1673695375237,0.19072595,20697.0,20694.0,0.22679914]
[1673695375499,0.2675258,20699.0,20696.0,0.26093236]
[1673695375731,0.2675258,20699.0,20697.0,0.76128847]
[1673695375732,0.01177822,20699.0,20697.0,0.76128847]
[1673695375977,0.01177822,20699.0,20698.0,0.29131533]
[1673695376973,0.01177822,20699.0,20698.0,0.77445333]
[1673695377221,0.01177822,20699.0,20698.0,0.80654823]
[1673695377465,0.0106004,20699.0,20698.0,0.91445333]
[1673695377704,0.0106004,20699.0,20698.0,0.649717]
[1673695377978,0.0106004,20699.0,20698.0,0.789717]
[1673695378723,0.0106004,20699.0,20698.0,1.01617044]
[1673695379220,0.0106004,20699.0,20698.0,0.73617044]
[1673695379719,0.0106004,20699.0,20698.0,0.649717]
[1673695379950,0.0106004,20699.0,20698.0,0.91509198]
[1673695380196,0.0106004,20699.0,20698.0,0.77509198]
[1673695380441,0.0106004,20699.0,20698.0,0.91509198]
[1673695380933,0.0106004,20699.0,20698.0,0.77509198]
[1673695381186,0.0106004,20699.0,20698.0,0.91509198]
[1673695381950,0.0106004,20699.0,20698.0,0.649717]
[1673695382197,0.24001672,20699.0,20698.0,0.026579]
[1673695382947,0.0106004,20699.0,20698.0,0.166579]
[1673695383690,0.27034938,20699.0,20698.0,0.14]
[1673695383961,0.27034938,20699.0,20695.0,1.474608]
[1673695384212,0.27034938,20699.0,20695.0,1.7142366]
[1673695384213,0.46107533,20699.0,20695.0,1.7142366]
[1673695385250,0.46107533,20699.0,20698.0,0.14]
[1673695385525,0.27034938,20699.0,20696.0,0.24605359]
[1673695385766,0.27721538,20699.0,20696.0,0.24605359]
[1673695386257,0.27721538,20699.0,20698.0,0.14]
[1673695386504,0.27721538,20699.0,20697.0,0.2013539]
[1673695386996,0.27721538,20699.0,20696.0,0.483184]
[1673695387501,0.27721538,20699.0,20698.0,0.14]
[1673695387754,0.8005814,20699.0,20698.0,0.14]
[1673695388015,1.2617164,20699.0,20698.0,0.14]
[1673695388264,1.2617164,20699.0,20697.0,0.139]
[1673695388505,1.2617164,20699.0,20693.0,0.19581863]
[1673695388506,0.187526,20698.0,20693.0,0.19581863]
[1673695388750,0.51166095,20697.0,20694.0,0.26576002]
[1673695389005,0.19072595,20697.0,20694.0,0.26576002]
[1673695389261,0.7285114,20699.0,20697.0,0.021]
[1673695389262,0.5005814,20699.0,20697.0,0.021]
[1673695389508,0.5005814,20699.0,20693.0,0.483251]
[1673695389757,0.5005814,20699.0,20694.0,0.141]
[1673695389758,0.23797481,20696.0,20694.0,0.141]
[1673695390006,0.182526,20695.0,20692.0,0.483274]
[1673695390253,0.19072595,20695.0,20692.0,0.483274]
[1673695390512,0.19072595,20695.0,20691.0,0.7005974]
[1673695391245,0.19072595,20695.0,20691.0,0.2172984]
[1673695391489,0.22177074,20696.0,20691.0,0.3562984]
[1673695391738,0.22177074,20696.0,20691.0,0.3883933]
[1673695391739,0.41249669,20696.0,20691.0,0.3883933]
[1673695392233,0.20718206,20695.0,20691.0,0.2493933]
[1673695392475,0.39790801,20695.0,20691.0,0.3562984]
[1673695393231,0.49601521,20695.0,20691.0,0.3562984]
[1673695393482,0.620937,20694.0,20691.0,0.14428891]
[1673695393727,0.162524,20693.0,20691.0,0.00528891]
[1673695393985,0.162524,20693.0,20691.0,0.14428891]
[1673695393986,0.320937,20692.0,20691.0,0.14428891]
[1673695394232,0.320937,20692.0,20691.0,0.00528891]
[1673695394497,0.320937,20692.0,20691.0,0.14628891]
[1673695394746,0.85731483,20692.0,20691.0,0.00528891]
[1673695394994,0.85731483,20692.0,20691.0,0.14628891]
[1673695394995,0.620937,20692.0,20691.0,0.14628891]
[1673695395235,1.204215,20692.0,20691.0,0.14628891]
[1673695395485,1.335306,20692.0,20691.0,0.14628891]
[1673695395974,1.35633962,20692.0,20691.0,0.14628891]
[1673695396484,1.104215,20692.0,20691.0,0.14628891]
[1673695397239,1.04629813,20692.0,20691.0,0.14628891]
[1673695397727,0.804215,20692.0,20691.0,0.14628891]
[1673695397973,1.204215,20692.0,20691.0,0.14628891]
[1673695398221,1.03425116,20692.0,20691.0,0.14628891]
[1673695398467,0.804215,20692.0,20691.0,0.14628891]
[1673695399228,1.01575418,20692.0,20691.0,0.14628891]
[1673695399483,0.53247618,20692.0,20691.0,0.17838381]
[1673695399731,0.483259,20693.0,20691.0,0.14628891]
[1673695399732,0.24328108,20693.0,20691.0,0.14628891]
[1673695400238,0.320937,20692.0,20691.0,0.14628891]
[1673695400488,0.24328108,20693.0,20691.0,0.14628891]
[1673695400725,0.24328108,20693.0,20691.0,0.14607317]
[1673695401215,0.24328108,20693.0,20691.0,0.00507317]
[1673695401466,0.24428108,20693.0,20691.0,0.14507317]
[1673695401976,0.320937,20692.0,20691.0,0.14507317]
[1673695402223,0.24428108,20693.0,20691.0,0.14507317]
[1673695402469,0.320937,20692.0,20691.0,0.14507317]
[1673695402974,0.24428108,20693.0,20691.0,0.14507317]
[1673695403464,0.24428108,20693.0,20691.0,0.38209452]
[1673695403465,0.001,20693.0,20691.0,0.38209452]
[1673695403711,0.22137714,20693.0,20691.0,0.72539552]
[1673695403979,0.001,20692.0,20691.0,0.86539552]
[1673695404239,0.22137714,20693.0,20691.0,0.72539552]
[1673695404481,0.22237714,20693.0,20691.0,0.86539552]
[1673695404984,0.22237714,20693.0,20691.0,0.14507317]
[1673695405223,0.26494873,20692.0,20691.0,0.14507317]
[1673695405967,0.26494873,20692.0,20691.0,0.00507317]
[1673695406689,0.26494873,20692.0,20691.0,0.14507317]
[1673695406690,0.26594873,20692.0,20691.0,0.14507317]
[1673695406937,0.26494873,20692.0,20691.0,0.00507317]
[1673695407177,0.26594873,20692.0,20691.0,0.14507317]
[1673695407430,0.92707408,20696.0,20691.0,0.00507317]
[1673695407431,0.62707408,20696.0,20691.0,0.00507317]
[1673695407702,0.24829952,20694.0,20692.0,0.0320949]
[1673695407967,0.24829952,20694.0,20691.0,0.26714852]
[1673695408925,0.19504507,20695.0,20693.0,0.22175627]
[1673695409223,0.19504507,20695.0,20693.0,0.73710317]
[1673695409224,0.20168445,20695.0,20693.0,0.73710317]
[1673695409467,0.20168445,20695.0,20693.0,0.483252]
[1673695409964,0.001,20694.0,20693.0,0.483252]
[1673695410211,0.20168445,20695.0,20693.0,0.483252]
[1673695410458,0.20168445,20695.0,20693.0,0.509252]
[1673695411463,0.20168445,20695.0,20693.0,0.026]
[1673695411947,0.20168445,20695.0,20692.0,0.74026022]
[1673695412195,0.20168445,20695.0,20693.0,0.026]
[1673695412446,0.20168445,20695.0,20692.0,0.74026022]
[1673695412696,0.20168445,20695.0,20693.0,0.026]
[1673695413186,0.320937,20694.0,20693.0,0.026]
[1673695413465,0.20168445,20695.0,20693.0,0.23701135]
[1673695413716,0.20168445,20695.0,20693.0,0.26301135]
[1673695413717,0.320937,20694.0,20693.0,0.26301135]
[1673695413962,0.320937,20694.0,20692.0,0.483271]
[1673695414218,0.162524,20693.0,20692.0,0.483271]
[1673695414469,0.20168445,20695.0,20692.0,0.483271]
[1673695414728,0.20168445,20695.0,20693.0,0.026]
[1673695414971,0.320937,20694.0,20692.0,0.69679956]
[1673695415270,0.163524,20693.0,20692.0,0.097]
[1673695415520,0.162524,20693.0,20691.0,0.00507317]
[1673695415766,0.55478844,20692.0,20691.0,0.00507317]
[1673695416250,0.23385144,20692.0,20691.0,0.00507317]
[1673695416737,0.001,20692.0,20691.0,0.30838326]
[1673695416976,0.001,20692.0,20691.0,0.10207317]
[1673695417233,0.001,20692.0,20691.0,0.58537417]
[1673695417476,0.1977594,20696.0,20691.0,0.48837417]
[1673695417733,0.1977594,20696.0,20692.0,0.28982193]
[1673695417986,0.54538711,20695.0,20692.0,0.77309293]
[1673695418256,0.162524,20694.0,20692.0,0.74099803]
[1673695418485,0.14388608,20698.0,20692.0,0.5153659]
[1673695418764,0.2232396,20698.0,20693.0,0.23640032]
[1673695419005,0.2182396,20698.0,20694.0,0.9985299]
[1673695420237,0.2182396,20698.0,20694.0,1.4817609]
[1673695420475,0.19946347,20699.0,20694.0,1.4817609]
[1673695420725,0.5340755,20699.0,20694.0,1.6227609]
[1673695421456,0.22815452,20698.0,20695.0,0.24612298]
[1673695421716,0.22815452,20698.0,20696.0,0.483185]
[1673695421961,0.15448648,20699.0,20696.0,0.483185]
[1673695422215,0.0106004,20699.0,20696.0,0.5152799]
[1673695422461,0.0106004,20699.0,20696.0,0.483185]
[1673695422462,0.20577207,20699.0,20696.0,0.483185]
[1673695423703,0.20006843,20698.0,20696.0,0.483185]
[1673695423943,0.0106004,20699.0,20696.0,0.503185]
[1673695424200,0.0106004,20699.0,20697.0,0.18983135]
[1673695424440,0.0106004,20699.0,20698.0,0.483138]
[1673695425447,0.0724204,20699.0,20698.0,0.483138]
[1673695425702,0.81339174,20699.0,20698.0,0.089]
[1673695425949,8.47576933,20699.0,20698.0,0.089]
[1673695426708,9.76284604,20699.0,20698.0,0.089]
[1673695426961,9.13193808,20699.0,20690.0,0.7086209]
[1673695427203,9.86071324,20699.0,20698.0,0.021]
[1673695427453,9.668933,20699.0,20698.0,0.021]
[1673695427743,9.686863,20699.0,20698.0,0.021]
[1673695428007,9.686863,20699.0,20692.0,0.24274657]
[1673695428258,0.50144286,20697.0,20692.0,0.24274657]
[1673695428513,0.65616009,20696.0,20692.0,0.24274657]
[1673695428762,0.35324995,20695.0,20691.0,0.69669611]
[1673695429018,0.51166295,20694.0,20691.0,0.69669611]
[1673695429272,0.320937,20693.0,20692.0,0.021]
[1673695429543,1.57961509,20693.0,20692.0,0.021]
[1673695429779,1.70563486,20693.0,20692.0,0.021]
[1673695430042,1.56113772,20693.0,20691.0,0.00507317]
[1673695430300,0.7070517,20692.0,20691.0,0.00507317]
[1673695430548,0.89777765,20692.0,20690.0,0.00528891]
[1673695430786,1.54424592,20691.0,20690.0,0.00528891]
[1673695431067,0.1,20690.0,20685.0,0.1564566]
[1673695431314,0.83660495,20689.0,20685.0,0.1564566]
[1673695431573,0.51166295,20688.0,20683.0,0.71052762]
[1673695431859,0.35324995,20687.0,20683.0,0.00555426]
[1673695432110,0.320937,20686.0,20683.0,0.00555426]
[1673695432382,0.162524,20685.0,20683.0,0.00555426]
[1673695432605,0.19072595,20686.0,20683.0,0.00555426]
[1673695432856,0.320937,20685.0,20683.0,0.00555426]
[1673695433352,0.42559148,20687.0,20683.0,0.00555426]
[1673695433602,0.320937,20686.0,20683.0,0.00555426]
[1673695433850,0.162524,20685.0,20683.0,0.00555426]
[1673695434598,0.42165441,20685.0,20684.0,0.14635187]
[1673695434840,0.42165441,20685.0,20684.0,0.00535187]
[1673695435091,0.42165441,20685.0,20684.0,0.02635187]
[1673695435576,0.82165441,20685.0,20684.0,0.02635187]
[1673695435812,0.42165441,20685.0,20684.0,0.02635187]
[1673695439072,0.42165441,20685.0,20684.0,0.05844677]
[1673695439073,0.162524,20685.0,20684.0,0.05844677]
[1673695439323,7.2779278,20689.0,20684.0,0.26834012]
[1673695439324,0.23173559,20688.0,20684.0,0.26834012]
[1673695439569,0.48335,20689.0,20685.0,0.21169511]
[1673695439570,0.21621702,20687.0,20685.0,0.21169511]
[1673695440591,0.21621702,20687.0,20685.0,0.20880105]
[1673695440840,0.21621702,20687.0,20684.0,0.02635187]
[1673695440841,0.19072595,20687.0,20684.0,0.02635187]
[1673695441084,0.320937,20686.0,20684.0,0.02635187]
[1673695441334,0.162524,20685.0,20684.0,0.02635187]
[1673695441585,0.262524,20685.0,20684.0,0.02635187]
[1673695442076,0.262524,20685.0,20684.0,0.00535187]
[1673695442337,1.045966,20685.0,20684.0,0.00535187]
[1673695442823,1.26888944,20685.0,20684.0,0.00535187]
[1673695443331,1.16888944,20685.0,20684.0,0.00535187]
[1673695443584,1.26888944,20685.0,20684.0,0.00535187]
[1673695443824,0.949966,20685.0,20684.0,0.00535187]
[1673695444083,1.33380309,20685.0,20684.0,0.00535187]
[1673695444332,1.049966,20685.0,20684.0,0.00535187]
[1673695444577,1.2891984,20685.0,20684.0,0.00535187]
[1673695444833,0.4057564,20685.0,20684.0,0.00535187]
[1673695445846,0.4057564,20685.0,20684.0,0.21662963]
[1673695445847,0.004,20685.0,20684.0,0.21662963]
[1673695446588,0.004,20685.0,20684.0,0.70009463]
[1673695446833,0.004,20685.0,20684.0,0.75173963]
[1673695447104,0.004,20685.0,20684.0,0.54046187]
[1673695447105,0.00360001,20685.0,20684.0,0.54046187]
[1673695447597,0.00360001,20685.0,20684.0,0.64046187]
[1673695448355,0.26708684,20692.0,20684.0,0.64896187]
[1673695448602,0.45781279,20692.0,20685.0,0.1405949]
[1673695448842,0.45781279,20692.0,20687.0,0.966786]
[1673695448843,0.26708684,20692.0,20687.0,0.966786]
[1673695449095,0.26708684,20692.0,20688.0,0.0320949]
[1673695449354,0.01474708,20692.0,20689.0,0.0320949]
[1673695449629,0.01474708,20692.0,20690.0,0.483325]
[1673695449892,0.01474708,20692.0,20690.0,0.75253609]
[1673695450131,0.01474708,20692.0,20690.0,0.72044119]
[1673695450387,0.21691407,20692.0,20690.0,0.483325]
[1673695450643,0.19416667,20691.0,20690.0,0.483325]
[1673695451856,0.19416667,20691.0,20690.0,0.624325]
[1673695452374,0.01474708,20692.0,20690.0,0.624325]
[1673695452634,0.01474708,20692.0,20690.0,0.73318331]
[1673695452876,0.01474708,20692.0,20690.0,0.624325]
[1673695453115,0.01474708,20692.0,20691.0,0.051616]
[1673695453603,0.01474708,20692.0,20691.0,0.534917]
[1673695453855,0.01474708,20692.0,20691.0,1.018218]
[1673695455110,0.01474708,20692.0,20691.0,1.108218]
[1673695455848,0.01474708,20692.0,20691.0,1.208218]
[1673695456105,0.01474708,20692.0,20691.0,1.108218]
[1673695456339,0.01474708,20692.0,20691.0,1.30617647]
[1673695456588,0.01474708,20692.0,20691.0,1.108218]
[1673695457077,0.01474708,20692.0,20691.0,1.116718]
[1673695457587,0.01474708,20692.0,20691.0,1.216718]
[1673695458081,0.20547303,20692.0,20691.0,1.35596914]
[1673695458321,0.01474708,20692.0,20691.0,1.35596914]
[1673695458814,0.20547303,20692.0,20691.0,1.108218]
[1673695459073,0.20547303,20692.0,20691.0,0.141616]
[1673695459074,0.27825108,20692.0,20691.0,0.141616]
[1673695459319,0.27825108,20692.0,20691.0,0.09]
[1673695460847,0.24327767,20692.0,20691.0,0.09]
[1673695461121,0.56421467,20692.0,20691.0,0.09]
[1673695461358,1.62049154,20692.0,20691.0,0.09]
[1673695461837,1.62049154,20692.0,20686.0,0.249935]
[1673695462119,1.13045164,20691.0,20684.0,0.00535187]
[1673695462375,1.13045164,20691.0,20686.0,0.25097125]
[1673695462376,0.51166295,20690.0,20686.0,0.25097125]
[1673695462625,1.15740095,20690.0,20684.0,0.00535187]
[1673695462886,0.45502888,20689.0,20685.0,0.19939347]
[1673695464400,0.45502888,20689.0,20685.0,0.34039347]
[1673695464678,0.19072595,20689.0,20685.0,0.34039347]
[1673695464940,0.19072595,20689.0,20685.0,0.141]
[1673695464941,0.620937,20688.0,20685.0,0.141]
[1673695465158,0.162524,20687.0,20684.0,0.00535187]
[1673695465411,0.420937,20686.0,20684.0,0.00535187]
[1673695465651,0.162524,20685.0,20684.0,0.00535187]
[1673695465909,0.462524,20685.0,20684.0,0.00535187]
[1673695466190,0.162524,20685.0,20684.0,0.00535187]
[1673695467148,0.166524,20685.0,20684.0,0.00535187]
[1673695468146,0.38919115,20685.0,20684.0,0.00535187]
[1673695468394,0.32812462,20685.0,20684.0,0.00535187]
[1673695468644,1.21156662,20685.0,20684.0,0.00535187]
[1673695468902,1.6371581,20685.0,20684.0,0.00529187]
[1673695469139,1.29989681,20685.0,20684.0,0.00529187]
[1673695469383,1.30389681,20685.0,20684.0,0.00529187]
[1673695469650,1.045966,20685.0,20684.0,0.00029187]
[1673695469979,1.55834427,20685.0,20684.0,0.00029187]
[1673695470144,1.55434427,20685.0,20684.0,0.00029187]
[1673695470390,1.31550577,20685.0,20684.0,0.00029187]
[1673695470626,1.31150577,20685.0,20684.0,0.00029187]
[1673695470878,1.31450577,20685.0,20684.0,0.01029187]
[1673695471125,1.74009725,20685.0,20684.0,0.01029187]
[1673695471898,1.74009725,20685.0,20684.0,0.04238677]
[1673695471899,0.42584096,20685.0,20684.0,0.04238677]
[1673695472133,0.26331696,20685.0,20684.0,0.01029187]
[1673695472378,0.58425396,20685.0,20684.0,0.01029187]
[1673695472627,0.26331696,20685.0,20684.0,0.01029187]
[1673695472881,0.483376,20688.0,20684.0,0.00029187]
[1673695473123,0.483376,20688.0,20684.0,0.24512696]
[1673695473124,0.003,20685.0,20684.0,0.24512696]
[1673695473872,0.20737744,20688.0,20684.0,0.23512696]
[1673695474160,0.20737744,20688.0,20684.0,0.37412696]
[1673695474389,0.24513657,20687.0,20684.0,0.23512696]
[1673695474602,0.24513657,20687.0,20684.0,0.37612696]
[1673695474848,0.783351,20689.0,20684.0,0.37612696]
[1673695474849,0.21157889,20686.0,20684.0,0.23512696]
[1673695475084,0.21157889,20686.0,20684.0,0.37612696]
[1673695475602,0.24675842,20685.0,20684.0,0.14129187]
[1673695475861,0.24675842,20685.0,20684.0,0.00029187]
[1673695476097,0.54675842,20685.0,20684.0,0.14129187]
[1673695476380,0.24675842,20685.0,20684.0,0.00029187]
[1673695476653,0.24675842,20685.0,20684.0,0.14129187]
[1673695476903,0.24675842,20685.0,20684.0,0.00029187]
[1673695477147,0.24675842,20685.0,20684.0,0.14129187]
[1673695477647,0.53411801,20688.0,20684.0,0.39332035]
[1673695477882,0.53411801,20688.0,20685.0,0.0320949]
[1673695478130,0.23411801,20688.0,20685.0,0.0320949]
[1673695478381,0.23411801,20688.0,20684.0,0.39332035]
[1673695478622,0.23411801,20688.0,20685.0,0.19934731]
[1673695479405,0.9628,20690.0,20685.0,0.29134731]
[1673695479644,0.23387748,20689.0,20686.0,0.0320949]
[1673695479899,0.23387748,20689.0,20685.0,0.77478631]
[1673695480144,0.23387748,20689.0,20685.0,0.71488121]
[1673695480385,0.23387748,20689.0,20685.0,0.77478631]
[1673695480648,0.23387748,20689.0,20685.0,0.71488121]
[1673695480915,0.23387748,20689.0,20685.0,0.80688121]
[1673695481185,0.23387748,20689.0,20686.0,0.22685407]
[1673695481186,0.42460343,20689.0,20686.0,0.22685407]
[1673695481402,0.25726523,20689.0,20686.0,0.22685407]
[1673695481658,0.23387748,20689.0,20686.0,0.22685407]
[1673695482447,0.23387748,20689.0,20686.0,0.24785407]
[1673695482685,8.87354181,20692.0,20686.0,0.73127007]
[1673695482686,0.20929585,20691.0,20686.0,0.73127007]
[1673695482982,0.20929585,20691.0,20687.0,0.0320949]
[1673695483464,0.20929585,20691.0,20687.0,0.5154869]
[1673695484062,0.21329585,20691.0,20688.0,0.21849593]
[1673695484541,0.35054714,20691.0,20686.0,0.483416]
[1673695484783,0.49072595,20690.0,20686.0,0.74081867]
[1673695485277,0.19072595,20690.0,20686.0,0.74081867]
[1673695485570,0.49072595,20690.0,20688.0,0.006]
[1673695485812,0.48638644,20691.0,20686.0,0.74081867]
[1673695485813,0.34613515,20691.0,20686.0,0.74081867]
[1673695486071,0.5368611,20691.0,20690.0,7.509e-05]
[1673695486312,0.64613515,20691.0,20690.0,7.509e-05]
[1673695486572,0.76542293,20691.0,20690.0,7.509e-05]
[1673695486812,1.00107582,20691.0,20690.0,7.509e-05]
[1673695487070,0.71475509,20692.0,20690.0,7.509e-05]
[1673695487071,0.01474708,20692.0,20690.0,0.51549499]
[1673695487321,0.01474708,20692.0,20691.0,0.05161]
[1673695487565,0.27003881,20692.0,20690.0,1.21678726]
[1673695487818,0.27003881,20692.0,20691.0,0.051607]
[1673695488069,0.27003881,20692.0,20690.0,1.21678726]
[1673695488313,0.27003881,20692.0,20690.0,0.96670209]
[1673695488530,0.27003881,20692.0,20690.0,0.48337709]
[1673695488820,0.27003881,20692.0,20690.0,0.62237709]
[1673695488821,0.01474708,20692.0,20690.0,0.62237709]
[1673695489050,0.01474708,20692.0,20690.0,0.83241849]
[1673695490271,0.23786893,20692.0,20690.0,0.83241849]
[1673695491560,0.01474708,20692.0,20691.0,0.21544711]
[1673695491809,0.01474708,20692.0,20691.0,0.26705611]
[1673695492054,0.01474708,20692.0,20691.0,0.85035711]
[1673695492302,0.01474708,20692.0,20691.0,0.75035711]
[1673695492801,0.01474708,20692.0,20691.0,0.89035711]
[1673695493533,0.0146855,20692.0,20691.0,0.67491]
[1673695493782,0.0146855,20692.0,20691.0,0.89702763]
[1673695493783,0.0132108,20692.0,20691.0,0.89702763]
[1673695501279,1.0,20692.0,20691.0,0.53491]
[1673695501528,0.96246212,20692.0,20691.0,0.68163]
[1673695502027,0.94961655,20692.0,20691.0,0.92063]
[1673695502278,0.00956287,20694.0,20692.0,0.10190704]
[1673695502532,0.00956287,20694.0,20693.0,0.96651]
[1673695502783,0.00956287,20694.0,20693.0,1.500583]
[1673695503092,0.00956287,20694.0,20693.0,1.59515402]
[1673695503533,0.00956287,20694.0,20693.0,1.59107745]
[1673695503774,0.00956287,20694.0,20693.0,1.49107745]
[1673695504275,0.00956287,20694.0,20693.0,1.63107745]
[1673695505044,0.00956287,20694.0,20693.0,1.85323264]
[1673695505615,0.00956287,20694.0,20693.0,1.08326159]
[1673695505796,0.24598615,20694.0,20693.0,0.14]
[1673695506549,0.24174792,20694.0,20693.0,0.13955527]
[1673695507819,0.24174792,20694.0,20693.0,0.12677484]
[1673695509043,0.24174792,20694.0,20693.0,0.12064749]
[1673695509780,0.30532464,20694.0,20693.0,0.12064749]
[1673695510289,1.10949364,20694.0,20693.0,0.12064749]
[1673695510531,1.36409965,20694.0,20692.0,0.00190704]
[1673695510777,0.463303,20693.0,20692.0,0.00190704]
[1673695511017,0.163303,20693.0,20692.0,0.00190704]
[1673695511282,0.74316165,20694.0,20693.0,0.008]
[1673695511283,0.25993065,20694.0,20693.0,0.008]
[1673695511530,0.25993065,20694.0,20692.0,0.00190704]
[1673695511772,0.320938,20693.0,20692.0,0.00190704]
[1673695512033,0.028,20693.0,20692.0,0.00390704]
[1673695512798,0.25993065,20694.0,20692.0,0.00190704]
[1673695513045,0.25993065,20694.0,20693.0,0.015]
[1673695513806,0.25993065,20694.0,20692.0,0.00190704]
[1673695514055,0.56986684,20693.0,20692.0,0.00390704]
[1673695514295,0.56986684,20693.0,20692.0,0.00182965]
[1673695514556,0.24892884,20693.0,20692.0,0.00182965]
[1673695515062,0.24892884,20693.0,20692.0,0.00382965]
[1673695515838,0.24892884,20693.0,20692.0,0.00182965]
[1673695516080,0.27692884,20693.0,20692.0,0.00382965]
[1673695516823,0.59786684,20693.0,20692.0,0.00382965]
[1673695517585,0.27692884,20693.0,20692.0,0.00382965]
[1673695520328,1.92366838,20693.0,20692.0,0.00382965]
[1673695520571,2.76982914,20693.0,20692.0,0.00382965]
[1673695520830,2.90699013,20693.0,20692.0,0.00382965]
[1673695521074,2.90699013,20693.0,20692.0,2.965e-05]
[1673695521075,2.54569589,20693.0,20692.0,2.965e-05]
[1673695521316,2.54569589,20693.0,20690.0,7.509e-05]
[1673695521317,0.1,20692.0,20690.0,7.509e-05]
[1673695521561,1.27442307,20691.0,20690.0,7.509e-05]
[1673695521817,1.89120017,20691.0,20690.0,7.509e-05]
[1673695522354,1.7466821,20691.0,20690.0,7.509e-05]
[1673695522873,2.03575948,20691.0,20690.0,7.509e-05]
[1673695523368,2.01375948,20691.0,20690.0,0.00907509]
[1673695523607,1.79694114,20691.0,20690.0,0.00907509]
[1673695523845,2.01378604,20691.0,20690.0,0.00907509]
[1673695524337,2.22911021,20691.0,20690.0,0.00907509]
[1673695524586,2.01378604,20691.0,20690.0,0.00907509]
[1673695524834,2.08673169,20691.0,20690.0,0.00907509]
[1673695525082,2.01375634,20691.0,20690.0,0.00907509]
[1673695525323,1.86926061,20691.0,20690.0,0.00907509]
[1673695525569,1.7247202,20691.0,20690.0,0.00907509]